fUSD/lending_fUSD_20260610
["ID","MTS","AMOUNT","RATE_DAILY","PERIOD"]
[424720010,1781088651000,-151.0,0.0002277,2]
[424719999,1781088651000,-203.5428293,0.00022546,2]
[424720004,1781088651000,-852.41886764,0.0002266,2]
[424719990,1781088651000,-2682.57183977,0.00022281,2]
[424720007,1781088651000,-377.4695115,0.00022761,2]
[424720009,1781088651000,-151.0,0.0002277,2]
[424720018,1781088651000,-157.13,0.00022771,2]
[424720014,1781088651000,-151.0,0.0002277,2]
[424720023,1781088651000,-151.0,0.00022771,2]
[424720013,1781088651000,-151.0,0.0002277,2]
[424720015,1781088651000,-151.0,0.0002277,2]
[424720006,1781088651000,-532.72603518,0.0002271,2]
[424720022,1781088651000,-151.57,0.00022771,2]
[424720005,1781088651000,-157.984708,0.00022667,2]
[424720020,1781088651000,-151.0,0.00022771,2]
[424720012,1781088651000,-151.0,0.0002277,2]
[424720011,1781088651000,-151.0,0.0002277,2]
[424720008,1781088651000,-151.0,0.0002277,2]
[424720088,1781088652000,-1757.0,0.00023,2]
[424720079,1781088652000,-192.89548342,0.00023,2]
[424720080,1781088652000,-192.89548342,0.00023,2]
[424720078,1781088652000,-2388.6331015,0.00023,2]
[424720081,1781088652000,-620.0,0.00023,2]
[424720085,1781088652000,-2029.0,0.00023,2]
[424720084,1781088652000,-1839.0,0.00023,2]
[424720086,1781088652000,-641.0,0.00023,2]
[424720087,1781088652000,-473.0,0.00023,2]
[424720076,1781088652000,-4986.0,0.00023,2]
[424720095,1781088652000,-200.0,0.00023067,2]
[424720092,1781088652000,-646.0,0.00023,2]
[424720099,1781088652000,-230.18020008,0.00023156,2]
[424720093,1781088652000,-1235.0,0.00023,2]
[424720077,1781088652000,-246.28,0.00023,2]
[424720098,1781088652000,-198.86567018,0.00023156,2]
[424720096,1781088652000,-1841.44160068,0.00023156,2]
[424720090,1781088652000,-547.0,0.00023,2]
[424720091,1781088652000,-1829.0,0.00023,2]
[424720094,1781088652000,-223.78886906,0.00023039,2]
[424720097,1781088652000,-350.46822748,0.00023156,2]
[424720089,1781088652000,-627.0,0.00023,2]
[424720072,1781088652000,-151.0,0.00022829,2]
[424720066,1781088652000,-152.72359966,0.00022829,2]
[424720075,1781088652000,-151.0,0.00022978,2]
[424720101,1781088652000,-359.44219057,0.000232,2]
[424720052,1781088652000,-151.0,0.00022771,2]
[424720053,1781088652000,-151.0,0.00022771,2]
[424720056,1781088652000,-151.0,0.00022771,2]
[424720054,1781088652000,-151.0,0.00022771,2]
[424720057,1781088652000,-151.0,0.00022771,2]
[424720055,1781088652000,-151.0,0.00022771,2]
[424720058,1781088652000,-151.0,0.00022771,2]
[424720059,1781088652000,-151.0,0.00022771,2]
[424720060,1781088652000,-151.0,0.00022771,2]
[424720083,1781088652000,-551.0,0.00023,2]
[424720070,1781088652000,-2781.82699784,0.00022829,2]
[424720064,1781088652000,-233.5188934,0.00022829,2]
[424720065,1781088652000,-280.03725111,0.00022829,2]
[424720068,1781088652000,-337.5791174,0.00022829,2]
[424720067,1781088652000,-200.0,0.00022829,2]
[424720063,1781088652000,-188.41146214,0.00022829,2]
[424720071,1781088652000,-280.03725111,0.00022829,2]
[424720062,1781088652000,-200.0,0.00022829,2]
[424720073,1781088652000,-151.0,0.00022975,7]
[424720082,1781088652000,-665.0,0.00023,2]
[424720074,1781088652000,-151.0,0.00022978,2]
[424720069,1781088652000,-151.0,0.00022829,2]
[424720061,1781088652000,-310.078125,0.00022829,2]
[424720102,1781088652000,-350.46822748,0.00023223,2]
[424720100,1781088652000,-1841.44160068,0.00023196,2]
[424720124,1781088652000,-150.0,0.00023471,2]
[424720126,1781088652000,-150.0,0.00023471,2]
[424720132,1781088652000,-151.0,0.00023593,2]
[424720128,1781088652000,-1175.10880478,0.000235,2]
[424720130,1781088652000,-151.0,0.00023592,2]
[424720133,1781088652000,-151.0,0.00023593,2]
[424720138,1781088652000,-151.0,0.00023593,2]
[424720137,1781088652000,-151.0,0.00023593,2]
[424720149,1781088652000,-151.0,0.00023593,2]
[424720140,1781088652000,-151.0,0.00023593,2]
[424720127,1781088652000,-150.0,0.00023471,2]
[424720147,1781088652000,-151.0,0.00023593,2]
[424720148,1781088652000,-151.0,0.00023593,2]
[424720146,1781088652000,-151.0,0.00023593,2]
[424720150,1781088652000,-151.0,0.00023593,2]
[424720141,1781088652000,-151.0,0.00023593,2]
[424720143,1781088652000,-197.91,0.00023593,2]
[424720145,1781088652000,-151.0,0.00023593,2]
[424720144,1781088652000,-151.0,0.00023593,2]
[424720152,1781088652000,-151.0,0.00023593,2]
[424720151,1781088652000,-151.0,0.00023593,2]
[424720111,1781088652000,-188.41146214,0.00023377,2]
[424720142,1781088652000,-151.0,0.00023593,2]
[424720131,1781088652000,-151.0,0.00023593,2]
[424720139,1781088652000,-151.0,0.00023593,2]
[424720134,1781088652000,-151.0,0.00023593,2]
[424720104,1781088652000,-1841.44160068,0.00023275,2]
[424720129,1781088652000,-151.0,0.00023592,2]
[424720107,1781088652000,-2946.25,0.0002335,7]
[424720103,1781088652000,-1841.44160068,0.00023236,2]
[424720109,1781088652000,-310.078125,0.00023377,2]
[424720106,1781088652000,-1841.44160068,0.00023315,2]
[424720105,1781088652000,-350.46822748,0.00023291,2]
[424720110,1781088652000,-202.70711956,0.00023377,2]
[424720112,1781088652000,-290.3986294,0.00023377,2]
[424720114,1781088652000,-200.0,0.00023377,2]
[424720115,1781088652000,-151.0,0.00023377,2]
[424720108,1781088652000,-1841.44160068,0.00023355,2]
[424720121,1781088652000,-150.0,0.00023471,2]
[424720117,1781088652000,-290.3986294,0.00023377,2]
[424720113,1781088652000,-242.15909246,0.00023377,2]
[424720123,1781088652000,-150.0,0.00023471,2]
[424720116,1781088652000,-2884.75459676,0.00023377,2]
[424720120,1781088652000,-194.37709198,0.00023424,2]
[424720119,1781088652000,-1841.44160068,0.00023395,2]
[424720135,1781088652000,-151.0,0.00023593,2]
[424720122,1781088652000,-150.0,0.00023471,2]
[424720125,1781088652000,-150.0,0.00023471,2]
[424720118,1781088652000,-151.0,0.00023377,2]
[424720136,1781088652000,-151.0,0.00023593,2]
[424720189,1781088653000,-151.0,0.00023597,2]
[424720197,1781088653000,-151.0,0.00023597,2]
[424720179,1781088653000,-151.0,0.00023597,2]
[424720191,1781088653000,-151.4,0.00023597,2]
[424720196,1781088653000,-151.0,0.00023597,2]
[424720188,1781088653000,-151.0,0.00023597,2]
[424720192,1781088653000,-151.0,0.00023597,2]
[424720190,1781088653000,-151.0,0.00023597,2]
[424720187,1781088653000,-151.0,0.00023597,2]
[424720181,1781088653000,-151.0,0.00023597,2]
[424720195,1781088653000,-151.0,0.00023597,2]
[424720193,1781088653000,-151.18,0.00023597,2]
[424720194,1781088653000,-151.0,0.00023597,2]
[424720209,1781088653000,-200.0,0.00023835,2]
[424720200,1781088653000,-267.28,0.00023597,2]
[424720199,1781088653000,-151.0,0.00023597,2]
[424720201,1781088653000,-151.0,0.00023597,2]
[424720203,1781088653000,-572.84,0.00023597,2]
[424720206,1781088653000,-151.0,0.00023597,2]
[424720207,1781088653000,-948.77,0.000236,7]
[424720202,1781088653000,-151.0,0.00023597,2]
[424720210,1781088653000,-54530.88430358,0.000239,2]
[424720204,1781088653000,-151.0,0.00023597,2]
[424720211,1781088653000,-241.6875,0.00023921,2]
[424720205,1781088653000,-151.0,0.00023597,2]
[424720208,1781088653000,-150.0,0.0002375,2]
[424720183,1781088653000,-151.0,0.00023597,2]
[424720198,1781088653000,-151.0,0.00023597,2]
[424720184,1781088653000,-151.0,0.00023597,2]
[424720156,1781088653000,-151.0,0.00023593,2]
[424720180,1781088653000,-151.0,0.00023597,2]
[424720212,1781088653000,-242.15909246,0.00023921,2]
[424720153,1781088653000,-151.0,0.00023593,2]
[424720155,1781088653000,-573.19,0.00023593,2]
[424720154,1781088653000,-151.0,0.00023593,2]
[424720157,1781088653000,-151.0,0.00023593,2]
[424720160,1781088653000,-151.0,0.00023593,2]
[424720158,1781088653000,-151.0,0.00023593,2]
[424720161,1781088653000,-151.0,0.00023593,2]
[424720159,1781088653000,-151.0,0.00023593,2]
[424720163,1781088653000,-151.0,0.00023593,2]
[424720164,1781088653000,-151.0,0.00023593,2]
[424720162,1781088653000,-151.0,0.00023593,2]
[424720172,1781088653000,-151.0,0.00023597,2]
[424720182,1781088653000,-151.0,0.00023597,2]
[424720173,1781088653000,-151.0,0.00023597,2]
[424720168,1781088653000,-151.0,0.00023593,2]
[424720171,1781088653000,-151.0,0.00023593,2]
[424720165,1781088653000,-151.0,0.00023593,2]
[424720167,1781088653000,-151.0,0.00023593,2]
[424720170,1781088653000,-151.0,0.00023593,2]
[424720169,1781088653000,-151.0,0.00023593,2]
[424720175,1781088653000,-151.0,0.00023597,2]
[424720176,1781088653000,-151.0,0.00023597,2]
[424720186,1781088653000,-151.0,0.00023597,2]
[424720178,1781088653000,-151.0,0.00023597,2]
[424720174,1781088653000,-151.0,0.00023597,2]
[424720185,1781088653000,-151.0,0.00023597,2]
[424720177,1781088653000,-151.0,0.00023597,2]
[424720166,1781088653000,-151.0,0.00023593,2]
[424720215,1781088653000,-151.0,0.00023923,2]
[424720213,1781088653000,-621.78829552,0.00023923,2]
[424720220,1781088653000,-200.0,0.00023925,2]
[424720245,1781088653000,-1116.17995082,0.00024154,2]
[424720248,1781088653000,-1299.0,0.00024391,2]
[424720250,1781088653000,-573.19,0.00024415,2]
[424720261,1781088653000,-151.0,0.00024419,2]
[424720253,1781088653000,-151.0,0.00024415,2]
[424720262,1781088653000,-151.19,0.00024419,2]
[424720255,1781088653000,-151.0,0.00024415,2]
[424720252,1781088653000,-151.0,0.00024415,2]
[424720260,1781088653000,-151.0,0.00024419,2]
[424720256,1781088653000,-151.0,0.00024415,2]
[424720254,1781088653000,-151.0,0.00024415,2]
[424720251,1781088653000,-151.03,0.00024415,2]
[424720259,1781088653000,-151.0,0.00024419,2]
[424720247,1781088653000,-2000.0,0.00024391,2]
[424720257,1781088653000,-151.0,0.00024415,2]
[424720264,1781088653000,-151.0,0.00024419,2]
[424720266,1781088653000,-573.19,0.00024419,2]
[424720263,1781088653000,-151.0,0.00024419,2]
[424720272,1781088653000,-151.0,0.00024419,2]
[424720265,1781088653000,-151.0,0.00024419,2]
[424720270,1781088653000,-151.0,0.00024419,2]
[424720273,1781088653000,-151.0,0.00024419,2]
[424720274,1781088653000,-151.0,0.00024419,2]
[424720267,1781088653000,-151.0,0.00024419,2]
[424720275,1781088653000,-151.0,0.00024419,2]
[424720269,1781088653000,-151.0,0.00024419,2]
[424720271,1781088653000,-151.0,0.00024419,2]
[424720268,1781088653000,-151.0,0.00024419,2]
[424720258,1781088653000,-573.19,0.00024415,2]
[424720246,1781088653000,-1286.1,0.00024324,2]
[424720217,1781088653000,-301.14337869,0.00023925,2]
[424720244,1781088653000,-151.0,0.00024142,2]
[424720249,1781088653000,-262.32121832,0.00024414,2]
[424720214,1781088653000,-775.4783256,0.00023923,2]
[424720222,1781088653000,-2991.49051684,0.00023925,2]
[424720218,1781088653000,-188.41146231,0.00023925,2]
[424720219,1781088653000,-251.11897888,0.00023925,2]
[424720216,1781088653000,-310.078125,0.00023925,2]
[424720223,1781088653000,-301.14337869,0.00023925,2]
[424720224,1781088653000,-151.0,0.00023925,2]
[424720221,1781088653000,-151.0,0.00023925,2]
[424720276,1781088653000,-1358.0,0.00024432,2]
[424720227,1781088653000,-1040.95752163,0.00024,2]
[424720226,1781088653000,-3521.0,0.00024,2]
[424720232,1781088653000,-551.0,0.00024,2]
[424720228,1781088653000,-1258.69277955,0.00024,2]
[424720225,1781088653000,-157.984708,0.00024,2]
[424720229,1781088653000,-500.0,0.00024,2]
[424720231,1781088653000,-665.0,0.00024,2]
[424720242,1781088653000,-1235.0,0.00024,2]
[424720243,1781088653000,-151.0,0.00024142,2]
[424720240,1781088653000,-1829.0,0.00024,2]
[424720236,1781088653000,-473.0,0.00024,2]
[424720237,1781088653000,-1757.0,0.00024,2]
[424720239,1781088653000,-547.0,0.00024,2]
[424720241,1781088653000,-646.0,0.00024,2]
[424720234,1781088653000,-2029.0,0.00024,2]
[424720235,1781088653000,-641.0,0.00024,2]
[424720238,1781088653000,-627.0,0.00024,2]
[424720230,1781088653000,-620.0,0.00024,2]
[424720233,1781088653000,-1839.0,0.00024,2]
[424720316,1781088654000,-606.444592,0.00024658,2]
[424720318,1781088654000,-606.444592,0.00024658,2]
[424720319,1781088654000,-606.444592,0.00024658,2]
[424720324,1781088654000,-606.444592,0.00024658,2]
[424720320,1781088654000,-606.444592,0.00024658,2]
[424720309,1781088654000,-850.49,0.00024658,2]
[424720315,1781088654000,-606.444592,0.00024658,2]
[424720312,1781088654000,-606.444592,0.00024658,2]
[424720310,1781088654000,-606.444592,0.00024658,2]
[424720308,1781088654000,-1000.0,0.00024658,2]
[424720323,1781088654000,-606.444592,0.00024658,2]
[424720314,1781088654000,-606.444592,0.00024658,2]
[424720313,1781088654000,-606.444592,0.00024658,2]
[424720332,1781088654000,-1195.43301,0.00024658,2]
[424720322,1781088654000,-606.444592,0.00024658,2]
[424720321,1781088654000,-606.444592,0.00024658,2]
[424720334,1781088654000,-1195.43301,0.00024658,2]
[424720335,1781088654000,-1195.43301,0.00024658,2]
[424720336,1781088654000,-1195.43301,0.00024658,2]
[424720325,1781088654000,-606.444592,0.00024658,2]
[424720327,1781088654000,-606.444592,0.00024658,2]
[424720328,1781088654000,-606.444592,0.00024658,2]
[424720326,1781088654000,-606.444592,0.00024658,2]
[424720329,1781088654000,-606.44459,0.00024658,2]
[424720331,1781088654000,-1195.43301,0.00024658,2]
[424720333,1781088654000,-1195.43301,0.00024658,2]
[424720307,1781088654000,-193.616587,0.00024658,2]
[424720317,1781088654000,-606.444592,0.00024658,2]
[424720306,1781088654000,-193.616587,0.00024658,2]
[424720289,1781088654000,-1229.0,0.00024541,2]
[424720304,1781088654000,-193.616587,0.00024658,2]
[424720330,1781088654000,-1195.43301,0.00024658,2]
[424720277,1781088654000,-1274.0,0.00024432,2]
[424720287,1781088654000,-151.0,0.00024513,2]
[424720279,1781088654000,-933.0,0.00024432,2]
[424720278,1781088654000,-382.0,0.00024432,2]
[424720281,1781088654000,-307.36260462,0.00024452,2]
[424720280,1781088654000,-419.0,0.00024432,2]
[424720283,1781088654000,-310.078125,0.00024473,2]
[424720286,1781088654000,-151.0,0.00024513,2]
[424720285,1781088654000,-350.0,0.00024493,5]
[424720282,1781088654000,-1022.93042674,0.00024452,2]
[424720284,1781088654000,-260.4103811,0.00024473,2]
[424720288,1781088654000,-151.0,0.00024513,2]
[424720305,1781088654000,-193.616587,0.00024658,2]
[424720299,1781088654000,-193.616587,0.00024658,2]
[424720293,1781088654000,-750.0,0.00024541,2]
[424720290,1781088654000,-2000.0,0.00024541,2]
[424720291,1781088654000,-2000.0,0.00024541,2]
[424720298,1781088654000,-193.616587,0.00024658,2]
[424720296,1781088654000,-193.616587,0.00024658,2]
[424720297,1781088654000,-193.616587,0.00024658,2]
[424720295,1781088654000,-172.3825088,0.0002465,2]
[424720292,1781088654000,-2000.0,0.00024541,2]
[424720311,1781088654000,-606.444592,0.00024658,2]
[424720301,1781088654000,-193.616587,0.00024658,2]
[424720300,1781088654000,-193.616587,0.00024658,2]
[424720302,1781088654000,-193.616587,0.00024658,2]
[424720303,1781088654000,-193.616587,0.00024658,2]
[424720294,1781088654000,-200.0,0.00024604,2]
[424720337,1781088654000,-1195.43301,0.00024658,2]
[424720345,1781088654000,-1195.43301,0.00024658,2]
[424720338,1781088654000,-1195.43301,0.00024658,2]
[424720370,1781088654000,-553.3996865,0.00025,2]
[424720371,1781088654000,-1841.67172888,0.00025,2]
[424720372,1781088654000,-2029.0,0.00025,2]
[424720376,1781088654000,-636.65877664,0.00025,2]
[424720387,1781088654000,-182.33,0.00025,2]
[424720375,1781088654000,-1770.9981003,0.00025,2]
[424720378,1781088654000,-1835.0,0.00025,2]
[424720377,1781088654000,-566.07711541,0.00025,2]
[424720386,1781088654000,-182.33,0.00025,2]
[424720379,1781088654000,-654.76624426,0.00025,2]
[424720380,1781088654000,-1251.21700485,0.00025,2]
[424720382,1781088654000,-182.33,0.00025,2]
[424720381,1781088654000,-182.33,0.00025,2]
[424720366,1781088654000,-2237.80954421,0.00025,2]
[424720385,1781088654000,-182.33,0.00025,2]
[424720384,1781088654000,-182.33,0.00025,2]
[424720389,1781088654000,-182.33,0.00025,2]
[424720399,1781088654000,-232.93493726,0.0002529,2]
[424720397,1781088654000,-573.23,0.00025241,2]
[424720388,1781088654000,-182.33,0.00025,2]
[424720390,1781088654000,-182.33,0.00025,2]
[424720391,1781088654000,-310.078125,0.00025021,2]
[424720339,1781088654000,-1195.43301,0.00024658,2]
[424720398,1781088654000,-241.6875,0.0002529,2]
[424720393,1781088654000,-2946.25,0.00025025,7]
[424720392,1781088654000,-270.0455652,0.00025021,2]
[424720395,1781088654000,-151.0,0.00025241,2]
[424720394,1781088654000,-575.4,0.00025236,2]
[424720383,1781088654000,-182.33,0.00025,2]
[424720368,1781088654000,-630.64571876,0.00025,2]
[424720396,1781088654000,-573.19,0.00025241,2]
[424720369,1781088654000,-684.58957114,0.00025,2]
[424720364,1781088654000,-621.14568776,0.00025,2]
[424720343,1781088654000,-1195.43301,0.00024658,2]
[424720346,1781088654000,-1195.43301,0.00024658,2]
[424720342,1781088654000,-1195.43301,0.00024658,2]
[424720348,1781088654000,-1195.43301,0.00024658,2]
[424720341,1781088654000,-1195.43301,0.00024658,2]
[424720344,1781088654000,-1195.43301,0.00024658,2]
[424720347,1781088654000,-1195.43301,0.00024658,2]
[424720349,1781088654000,-1195.433014,0.00024658,2]
[424720351,1781088654000,-790.29,0.00024737,7]
[424720361,1781088654000,-1815.20592334,0.00025,2]
[424720350,1781088654000,-1884.42,0.00024658,2]
[424720352,1781088654000,-206.0,0.00024815,2]
[424720340,1781088654000,-1195.43301,0.00024658,2]
[424720353,1781088654000,-420.36773841,0.00024844,2]
[424720354,1781088654000,-279.76041309,0.00024844,2]
[424720365,1781088654000,-3094.98682466,0.00025,2]
[424720374,1781088654000,-484.67017079,0.00025,2]
[424720363,1781088654000,-540.0,0.00025,2]
[424720362,1781088654000,-2000.0,0.00025,2]
[424720373,1781088654000,-642.76701402,0.00025,2]
[424720358,1781088654000,-300.83670649,0.00025,2]
[424720356,1781088654000,-700.0,0.0002497,2]
[424720359,1781088654000,-1132.83488844,0.00025,2]
[424720357,1781088654000,-42370.23403727,0.00025,2]
[424720367,1781088654000,-170.16071377,0.00025,2]
[424720355,1781088654000,-1860.56572691,0.00024844,2]
[424720360,1781088654000,-211.01386437,0.00025,2]
[424720438,1781088655000,-150.0,0.00026471,2]
[424720433,1781088655000,-200.0,0.00026141,2]
[424720425,1781088655000,-185.08,0.00026062,2]
[424720428,1781088655000,-482.2,0.00026063,2]
[424720427,1781088655000,-575.42,0.00026062,2]
[424720431,1781088655000,-310.078125,0.00026117,2]
[424720430,1781088655000,-194.33,0.000261,14]
[424720432,1781088655000,-290.3986294,0.00026117,2]
[424720435,1781088655000,-501.0,0.00026329,2]
[424720429,1781088655000,-573.2,0.00026063,2]
[424720434,1781088655000,-1286.1,0.00026296,2]
[424720439,1781088655000,-150.0,0.00026471,2]
[424720441,1781088655000,-150.0,0.00026471,2]
[424720442,1781088655000,-241.6875,0.00026659,2]
[424720443,1781088655000,-644.79446245,0.00026662,2]
[424720448,1781088655000,-2946.25,0.000267,7]
[424720446,1781088655000,-310.078125,0.00026665,2]
[424720444,1781088655000,-804.17102365,0.00026662,2]
[424720449,1781088655000,-2000.0,0.00026813,7]
[424720447,1781088655000,-301.14337869,0.00026665,2]
[424720437,1781088655000,-150.0,0.00026471,2]
[424720450,1781088655000,-481.96,0.0002688,2]
[424720440,1781088655000,-150.0,0.00026471,2]
[424720426,1781088655000,-573.19,0.00026062,2]
[424720410,1781088655000,-169.73,0.00025859,2]
[424720421,1781088655000,-185.08,0.00026062,2]
[424720445,1781088655000,-151.0,0.00026662,2]
[424720401,1781088655000,-948.77,0.000254,7]
[424720400,1781088655000,-200.0,0.00025372,2]
[424720402,1781088655000,-310.078125,0.00025569,2]
[424720403,1781088655000,-280.03725111,0.00025569,2]
[424720405,1781088655000,-2000.0,0.00025585,2]
[424720406,1781088655000,-2000.0,0.00025585,2]
[424720404,1781088655000,-2000.0,0.00025585,2]
[424720407,1781088655000,-2000.0,0.00025585,2]
[424720408,1781088655000,-1221.0,0.00025585,2]
[424720409,1781088655000,-219.07,0.00025644,2]
[424720413,1781088655000,-1926.04168249,0.0002592,2]
[424720414,1781088655000,-385.20833649,0.0002592,2]
[424720420,1781088655000,-573.19,0.00026062,2]
[424720416,1781088655000,-159.0,0.00025937,2]
[424720418,1781088655000,-550.0,0.00026,2]
[424720423,1781088655000,-573.19,0.00026062,2]
[424720415,1781088655000,-285.0,0.00025928,2]
[424720422,1781088655000,-573.19,0.00026062,2]
[424720412,1781088655000,-8741.0,0.00025874,2]
[424720417,1781088655000,-6578.0,0.00026,2]
[424720424,1781088655000,-573.19,0.00026062,2]
[424720419,1781088655000,-573.19,0.00026062,2]
[424720436,1781088655000,-150.0,0.00026471,2]
[424720452,1781088655000,-573.19,0.00026884,2]
[424720411,1781088655000,-169.76,0.00025859,2]
[424720454,1781088655000,-185.08,0.00026884,2]
[424720483,1781088655000,-193.616587,0.00027397,2]
[424720493,1781088655000,-500.0,0.00027397,7]
[424720494,1781088655000,-500.0,0.00027397,7]
[424720484,1781088655000,-193.616587,0.00027397,2]
[424720490,1781088655000,-500.0,0.00027397,7]
[424720486,1781088655000,-193.616587,0.00027397,2]
[424720485,1781088655000,-193.616587,0.00027397,2]
[424720487,1781088655000,-500.0,0.00027397,7]
[424720482,1781088655000,-151.0,0.00027397,2]
[424720488,1781088655000,-500.0,0.00027397,7]
[424720491,1781088655000,-500.0,0.00027397,7]
[424720489,1781088655000,-500.0,0.00027397,7]
[424720495,1781088655000,-319.9673702,0.00027397,7]
[424720497,1781088655000,-1500.0,0.00027397,2]
[424720499,1781088655000,-483.563758,0.00027397,2]
[424720498,1781088655000,-429.47311982,0.00027397,2]
[424720496,1781088655000,-151.45286566,0.00027397,30]
[424720502,1781088655000,-483.563758,0.00027397,2]
[424720500,1781088655000,-483.563758,0.00027397,2]
[424720503,1781088655000,-483.563758,0.00027397,2]
[424720501,1781088655000,-483.563758,0.00027397,2]
[424720504,1781088655000,-483.563758,0.00027397,2]
[424720451,1781088655000,-573.19,0.00026884,2]
[424720478,1781088655000,-217.41178917,0.000273,30]
[424720481,1781088655000,-151.0,0.00027397,2]
[424720492,1781088655000,-500.0,0.00027397,7]
[424720480,1781088655000,-1077.7130222,0.00027397,2]
[424720479,1781088655000,-151.0,0.00027394,7]
[424720457,1781088655000,-575.42,0.00026885,2]
[424720455,1781088655000,-575.4,0.00026884,2]
[424720458,1781088655000,-151.0,0.00026885,2]
[424720456,1781088655000,-185.09,0.00026884,2]
[424720460,1781088655000,-185.08,0.00026885,2]
[424720459,1781088655000,-185.08,0.00026885,2]
[424720463,1781088655000,-185.08,0.00026885,2]
[424720461,1781088655000,-185.08,0.00026885,2]
[424720466,1781088655000,-350.0,0.00026972,8]
[424720468,1781088655000,-1595.88373153,0.00027,2]
[424720462,1781088655000,-573.19,0.00026885,2]
[424720453,1781088655000,-185.08,0.00026884,2]
[424720465,1781088655000,-200.0,0.00026909,2]
[424720474,1781088655000,-185.15373224,0.00027136,2]
[424720475,1781088655000,-748.0,0.00027137,2]
[424720477,1781088655000,-310.078125,0.00027213,2]
[424720473,1781088655000,-1960.0,0.00027123,2]
[424720471,1781088655000,-5707.26122482,0.00027111,2]
[424720476,1781088655000,-948.77,0.000272,7]
[424720470,1781088655000,-284.95203121,0.00027,7]
[424720464,1781088655000,-185.08,0.00026885,2]
[424720467,1781088655000,-4512.0,0.00027,2]
[424720469,1781088655000,-215.92376884,0.00027,7]
[424720472,1781088655000,-371.77923291,0.00027123,2]
[424720552,1781088656000,-745.933756,0.00027397,2]
[424720545,1781088656000,-745.933756,0.00027397,2]
[424720544,1781088656000,-745.933756,0.00027397,2]
[424720543,1781088656000,-745.933756,0.00027397,2]
[424720540,1781088656000,-154.009562,0.00027397,2]
[424720536,1781088656000,-154.009562,0.00027397,2]
[424720541,1781088656000,-154.009571,0.00027397,2]
[424720538,1781088656000,-154.009562,0.00027397,2]
[424720537,1781088656000,-154.009562,0.00027397,2]
[424720548,1781088656000,-745.933756,0.00027397,2]
[424720539,1781088656000,-154.009562,0.00027397,2]
[424720542,1781088656000,-745.933756,0.00027397,2]
[424720546,1781088656000,-745.933756,0.00027397,2]
[424720556,1781088656000,-745.933756,0.00027397,2]
[424720547,1781088656000,-745.933756,0.00027397,2]
[424720550,1781088656000,-745.933756,0.00027397,2]
[424720553,1781088656000,-745.933756,0.00027397,2]
[424720551,1781088656000,-745.933756,0.00027397,2]
[424720531,1781088656000,-154.009562,0.00027397,2]
[424720554,1781088656000,-745.933756,0.00027397,2]
[424720555,1781088656000,-745.933756,0.00027397,2]
[424720560,1781088656000,-745.933756,0.00027397,2]
[424720562,1781088656000,-891.891479,0.00027397,2]
[424720557,1781088656000,-745.933756,0.00027397,2]
[424720564,1781088656000,-891.891479,0.00027397,2]
[424720563,1781088656000,-891.891479,0.00027397,2]
[424720549,1781088656000,-745.933756,0.00027397,2]
[424720535,1781088656000,-154.009562,0.00027397,2]
[424720510,1781088656000,-483.563758,0.00027397,2]